bitfinex/quotes_SOLUSD_20240708
["timestamp","ask_amount","ask_price","bid_price","bid_amount"]
[1720459435543,15.44338847,137.37,137.28,0.17]
[1720459435745,7.2817,137.33,137.28,0.17]
[1720459435924,7.2823,137.32,137.28,0.17]
[1720459436323,7.2828,137.31,137.28,1.62201185]
[1720459436525,18.2006,137.36,137.28,0.17]
[1720459436743,18.2006,137.36,137.25,100.17]
[1720459437046,7.2836,137.3,137.26,0.17]
[1720459437227,18.2035,137.34,137.25,100.0]
[1720459437432,7.2834,137.3,137.25,100.0]
[1720459437647,7.2834,137.3,137.25,0.17]
[1720459437830,27.2839,137.29,137.25,0.17]
[1720459438230,20.0,137.29,137.23,100.0]
[1720459438429,8.03804503,137.34,137.23,100.0]
[1720459438656,8.03804503,137.34,137.23,221.95]
[1720459438657,20.17,137.33,137.23,221.95]
[1720459438945,20.17,137.33,137.23,100.0]
[1720459439143,20.17,137.33,137.23,107.2866]
[1720459439458,20.17,137.33,137.23,100.0]
[1720459440252,20.17,137.33,137.25,107.2859]
[1720459440431,20.17,137.33,137.25,100.0]
[1720459440628,20.17,137.33,137.24,0.17]
[1720459440835,0.17,137.32,137.21,6.0226]
[1720459441149,0.17,137.3,137.18,22.8487]
[1720459441348,0.34,137.3,137.19,100.0]
[1720459441528,20.34,137.3,137.19,100.0]
[1720459441733,22.02132281,137.3,137.16,221.95]
[1720459442052,31.12641128,137.3,137.16,221.95]
[1720459442260,7.2871,137.23,137.16,221.95]
[1720459442425,20.0,137.22,137.16,221.95]
[1720459442629,20.0,137.22,137.16,229.2405]
[1720459442830,20.0,137.22,137.19,7.2889]
[1720459443030,7.2856,137.26,137.2,100.0]
[1720459443258,20.0,137.25,137.2,100.0]
[1720459443758,27.286,137.25,137.2,100.0]
[1720459444069,38.2154,137.25,137.18,100.0]
[1720459444233,38.2154,137.25,137.14,213.9173]
[1720459444234,7.2882,137.21,137.14,213.9173]
[1720459444440,20.0,137.2,137.14,213.9174]
[1720459444744,20.0,137.2,137.14,206.6257]
[1720459444745,27.2886,137.2,137.14,206.6257]
[1720459445052,20.0,137.2,137.16,100.0]
[1720459445247,20.0,137.22,137.13,100.0]
[1720459445461,20.0,137.22,137.1,106.6257]
[1720459445462,7.2892,137.19,137.12,18.2317]
[1720459445633,20.0,137.18,137.13,100.0]
[1720459446039,20.0,137.18,137.13,107.2922]
[1720459446235,20.0,137.18,137.1,106.6257]
[1720459446236,20.0,137.19,137.16,200.0]
[1720459446459,20.0,137.22,137.16,207.2907]
[1720459446865,7.2881,137.21,137.16,200.0]
[1720459447163,20.0,137.2,137.16,100.0]
[1720459447548,20.0,137.2,137.13,100.17]
[1720459447744,7.2892,137.19,137.14,0.17]
[1720459447944,20.0,137.18,137.14,0.17]
[1720459448156,7.2903,137.17,137.11,100.0]
[1720459448467,20.0,137.16,137.11,121.95]
[1720459448766,20.0,137.18,137.11,121.95]
[1720459449063,20.0,137.22,137.11,121.95]
[1720459449255,7.2897,137.18,137.11,129.243]
[1720459449456,27.2905,137.17,137.12,0.17]
[1720459449661,20.0,137.17,137.12,0.17]
[1720459449968,20.0,137.17,137.13,100.0]
[1720459450138,0.17,137.21,137.12,18.4015]
[1720459450336,7.2895,137.19,137.13,100.0]
[1720459450539,20.0,137.18,137.13,100.0]
[1720459450840,0.17,137.17,137.08,218.2362]
[1720459451346,18.2239,137.19,137.1,200.0]
[1720459451567,20.0,137.18,137.1,200.0]
[1720459451867,0.17,137.17,137.1,100.0]
[1720459452070,7.2914,137.15,137.09,0.17]
[1720459452254,20.0,137.14,137.08,247.4811]
[1720459452773,20.0,137.14,137.09,100.0]
[1720459452945,20.17,137.17,137.09,100.0]
[1720459453147,7.2907,137.16,137.1,7.2938]
[1720459453342,27.2913,137.15,137.08,100.0]
[1720459453552,7.2913,137.15,137.08,100.0]
[1720459453753,20.0,137.14,137.08,100.0]
[1720459454067,20.0,137.14,137.09,0.17]
[1720459454274,33.13508847,137.21,137.12,100.17]
[1720459454474,33.13508847,137.21,137.14,0.17]
[1720459454475,7.2891,137.2,137.14,0.17]
[1720459454650,7.2891,137.19,137.13,18.2301]
[1720459454979,7.2887,137.2,137.13,25.5223]
[1720459455351,16.39328847,137.21,137.15,7.4612]
[1720459455561,9.10508847,137.21,137.16,7.2904]
[1720459455767,7.2885,137.21,137.15,0.17]
[1720459456163,27.70174293,137.23,137.16,200.0]
[1720459456470,12.40434293,137.23,137.17,7.29]
[1720459456673,12.40434293,137.23,137.16,218.2264]
[1720459456674,19.69134293,137.23,137.16,225.5169]
[1720459456873,7.2876,137.22,137.16,218.2264]
[1720459457070,19.69144293,137.23,137.16,247.4671]
[1720459457376,16.9731335,137.25,137.19,100.17]
[1720459457377,7.2861,137.25,137.19,100.17]
[1720459457553,5.97880952,137.25,137.19,107.459]
[1720459457752,7.2855,137.26,137.19,107.459]
[1720459458047,9.10508847,137.27,137.22,107.4575]
[1720459458253,15.20822281,137.3,137.23,107.2865]
[1720459458763,7.92482281,137.3,137.22,0.17]
[1720459458948,7.286,137.25,137.19,118.2223]
[1720459459152,22.92180755,137.3,137.17,106.2824]
[1720459459346,18.213,137.27,137.19,200.0]
[1720459459555,7.2864,137.25,137.19,200.0]
[1720459459772,20.0,137.24,137.19,207.2891]
[1720459459947,20.0,137.25,137.19,207.2891]
[1720459460269,9.10508847,137.29,137.22,100.17]
[1720459460450,16.38898847,137.29,137.22,107.4572]
[1720459460773,14.85661908,137.3,137.24,100.0]
[1720459460986,7.2839,137.29,137.24,100.0]
[1720459461207,7.2845,137.28,137.22,118.3883]
[1720459461490,7.2859,137.26,137.2,0.17]
[1720459462193,20.0,137.25,137.17,106.2824]
[1720459462362,6.3775,137.26,137.17,100.0]
[1720459462566,7.2871,137.23,137.17,200.0]
[1720459462766,7.2885,137.21,137.15,218.2278]
[1720459463072,20.0,137.2,137.15,218.2278]
[1720459463267,7.2922,137.14,137.11,100.0]
[1720459463466,6.3775,137.19,137.11,100.0]
[1720459463467,6.3775,137.19,137.11,200.0]
[1720459463682,27.2901,137.18,137.11,207.2932]
[1720459463875,27.2901,137.18,137.14,100.0]
[1720459463876,20.0,137.18,137.14,100.0]
[1720459464258,20.0,137.19,137.14,7.2917]
[1720459464457,7.289,137.2,137.15,100.0]
[1720459464789,20.0,137.19,137.15,207.2912]
[1720459465165,20.0,137.21,137.15,207.2912]
[1720459465385,20.0,137.21,137.17,100.0]
[1720459465589,20.0,137.23,137.17,100.0]
[1720459465772,20.0,137.23,137.17,107.2901]
[1720459465967,7.2876,137.22,137.17,100.0]
[1720459466299,20.0,137.21,137.17,100.0]
[1720459466487,20.0,137.21,137.17,200.0]
[1720459466801,13.3069,137.24,137.17,207.2902]
[1720459466975,13.3069,137.24,137.17,100.0]
[1720459466976,6.02,137.24,137.17,100.0]
[1720459467175,0.17,137.23,137.17,100.0]
[1720459467377,7.2888,137.2,137.17,100.0]
[1720459467776,7.2876,137.22,137.17,100.0]
[1720459467984,6.02,137.24,137.17,100.0]
[1720459467985,6.02,137.24,137.17,200.0]
[1720459468192,20.17,137.23,137.17,100.0]
[1720459468507,20.17,137.23,137.17,200.0]
[1720459468508,27.2872,137.23,137.17,200.0]
[1720459468705,20.0,137.23,137.17,207.2901]
[1720459469311,13.15835851,137.25,137.19,100.0]
[1720459469471,9.43817004,137.27,137.21,100.0]
[1720459469667,6.6362,137.28,137.21,100.0]
[1720459470298,18.98753788,137.3,137.23,100.0]
[1720459470299,11.11949285,137.3,137.23,100.0]
[1720459470507,16.9337092,137.3,137.23,100.0]
[1720459470673,7.2843,137.28,137.23,100.0]
[1720459470872,7.284,137.29,137.23,100.0]
[1720459471196,7.2844,137.28,137.23,100.0]
[1720459471374,11.11949285,137.3,137.23,100.0]
[1720459471677,20.0,137.29,137.23,100.0]
[1720459472300,7.2856,137.26,137.23,100.0]
[1720459472804,20.0,137.25,137.23,100.0]
[1720459474195,20.0,137.26,137.23,200.0]
[1720459474372,20.0,137.29,137.23,200.0]
[1720459474773,7.2845,137.28,137.23,100.0]
[1720459474975,20.0,137.27,137.19,200.0]
[1720459475174,7.2852,137.27,137.2,7.2884]
[1720459475477,20.0,137.26,137.21,225.5079]
[1720459475896,20.0,137.26,137.23,218.2173]
[1720459476104,20.0,137.28,137.23,225.5041]
[1720459476481,7.4534,137.3,137.23,225.5041]
[1720459476482,7.2838,137.29,137.23,218.2173]
[1720459476781,7.284,137.29,137.23,218.2173]
[1720459477313,7.2833,137.3,137.24,0.17]
[1720459477483,7.2849,137.27,137.23,100.0]
[1720459477682,20.0,137.26,137.21,116.512]
[1720459477905,7.2863,137.25,137.19,100.0]
[1720459478107,20.0,137.24,137.19,100.0]
[1720459478589,20.0,137.24,137.18,6.5461]
[1720459478795,7.287,137.23,137.18,6.5461]
[1720459479098,20.0,137.22,137.19,100.0]
[1720459479679,20.0,137.23,137.19,207.2891]
[1720459479890,20.0,137.24,137.19,207.2891]
[1720459480212,20.0,137.24,137.21,200.0]
[1720459480517,5.84331795,137.27,137.22,0.17]
[1720459480705,20.0,137.26,137.22,0.17]
[1720459480907,7.86804503,137.29,137.23,200.0]
[1720459481084,7.2838,137.29,137.23,200.0]
[1720459481685,7.2844,137.28,137.23,200.0]
[1720459482015,7.2844,137.28,137.23,100.0]
[1720459482186,27.2849,137.27,137.22,0.17]
[1720459482386,27.2849,137.27,137.18,6.5461]
[1720459482387,7.2857,137.26,137.19,200.0]
[1720459482679,20.0,137.25,137.2,0.17]
[1720459482883,20.0,137.25,137.22,107.4574]
[1720459483110,20.0,137.25,137.22,100.17]
[1720459483288,15.18167247,137.3,137.21,0.17]
[1720459483289,7.2858,137.26,137.21,0.17]
[1720459483628,20.0,137.25,137.21,0.17]
[1720459483789,20.0,137.25,137.21,100.17]
[1720459484295,20.0,137.26,137.21,100.17]
[1720459485788,27.2855,137.26,137.21,100.17]
[1720459486103,20.0,137.26,137.21,107.4578]
[1720459486298,20.0,137.27,137.21,107.4578]
[1720459487110,20.0,137.27,137.23,100.17]
[1720459487413,20.0,137.28,137.23,100.17]
[1720459487907,7.2852,137.27,137.21,118.2201]
[1720459488120,20.0,137.26,137.21,118.2201]
[1720459488414,20.0,137.26,137.22,100.0]
[1720459488712,20.0,137.26,137.23,100.17]
[1720459488889,27.2845,137.28,137.23,100.17]
[1720459489083,27.2845,137.28,137.23,0.17]
[1720459489301,7.2851,137.27,137.21,118.2201]
[1720459489589,20.0,137.26,137.21,100.0]
[1720459489794,20.0,137.28,137.21,100.0]
[1720459489795,7.285,137.27,137.21,100.0]
[1720459489991,20.0,137.26,137.21,100.0]
[1720459490213,20.0,137.26,137.21,107.288]
[1720459490412,20.0,137.26,137.23,100.0]
[1720459490596,15.18167247,137.3,137.23,100.0]
[1720459490597,20.0,137.29,137.23,100.0]
[1720459490798,27.2842,137.29,137.23,100.0]
[1720459492104,27.2842,137.29,137.23,107.287]
[1720459492310,7.2845,137.28,137.22,118.3887]
[1720459492500,20.0,137.29,137.22,0.17]
[1720459492501,20.0,137.27,137.22,0.17]
[1720459492801,39.6913,137.28,137.18,6.5461]
[1720459493113,7.2873,137.23,137.18,6.5461]
[1720459493319,20.0,137.22,137.17,16.512]
[1720459493526,27.2877,137.22,137.16,125.5165]
[1720459493701,20.0,137.22,137.17,100.0]
[1720459493893,20.0,137.22,137.18,100.0]
[1720459495622,27.2875,137.22,137.18,100.0]
[1720459495915,20.0,137.22,137.16,118.2259]
[1720459496124,7.2881,137.21,137.16,100.0]
[1720459496309,7.2881,137.21,137.15,107.2912]
[1720459496310,20.0,137.2,137.15,107.2912]
[1720459497213,20.0,137.21,137.15,107.2912]
[1720459497520,20.0,137.21,137.16,0.17]
[1720459498132,20.0,137.21,137.17,200.0]
[1720459498294,20.0,137.22,137.18,7.4596]
[1720459498499,20.0,137.23,137.18,7.4596]
[1720459498832,20.0,137.23,137.18,0.17]
[1720459499502,20.0,137.23,137.19,100.0]
[1720459499708,27.2866,137.24,137.19,100.0]
[1720459500114,5.72788404,137.25,137.21,100.0]
[1720459500323,7.2859,137.25,137.19,107.2887]
[1720459500627,7.2873,137.23,137.18,100.17]
[1720459501197,7.2873,137.23,137.17,7.2902]
[1720459501198,7.61945605,137.29,137.22,200.0]
[1720459501400,7.61945605,137.29,137.25,7.2858]
[1720459501601,7.2824,137.32,137.26,7.2854]
[1720459501819,7.2824,137.32,137.25,7.4558]
[1720459502254,7.2836,137.3,137.24,218.2158]
[1720459502410,7.2839,137.29,137.24,218.2158]
[1720459502608,7.2839,137.29,137.24,200.0]
[1720459502936,7.2839,137.29,137.24,100.0]
[1720459503110,7.2846,137.28,137.24,100.0]
[1720459503298,7.2846,137.28,137.23,0.17]
[1720459503299,27.285,137.27,137.22,0.17]
[1720459503636,20.0,137.27,137.22,200.17]
[1720459503930,20.0,137.27,137.24,100.0]
[1720459504103,27.2847,137.28,137.22,0.17]
[1720459504303,20.0,137.28,137.24,100.0]
[1720459504516,20.0,137.29,137.24,100.0]
[1720459504913,20.0,137.29,137.25,118.3845]
[1720459505230,42.84443593,137.33,137.26,100.0]
[1720459505405,7.2823,137.32,137.26,107.2852]
[1720459505806,21.31,137.33,137.27,118.3821]
[1720459506077,17.30621507,137.34,137.28,100.0]
[1720459506239,17.30621507,137.34,137.29,25.4932]
[1720459506445,7.2806,137.35,137.29,25.4932]
[1720459506746,34.47188409,137.36,137.3,0.17]
[1720459506927,7.2807,137.35,137.3,0.17]
[1720459507255,7.2807,137.35,137.3,100.17]
[1720459507552,7.2807,137.35,137.3,0.17]
[1720459507943,7.2818,137.33,137.27,107.4544]
[1720459508143,45.39278409,137.36,137.27,100.17]
[1720459508348,20.0,137.32,137.27,100.17]
[1720459508958,27.2825,137.32,137.27,0.17]
[1720459509260,20.0,137.32,137.27,0.17]
[1720459509434,7.2823,137.32,137.27,0.17]
[1720459509640,20.0,137.31,137.27,107.4544]
[1720459509955,9.43817004,137.38,137.33,7.2813]
[1720459510160,7.2778,137.41,137.35,7.4506]
[1720459510329,27.18457479,137.43,137.37,7.4495]
[1720459510529,28.5865,137.43,137.37,0.17]
[1720459510847,28.5868,137.43,137.37,0.17]
[1720459511061,28.5868,137.43,137.37,7.4495]
[1720459511258,21.31,137.43,137.38,100.0]
[1720459511564,5.89119769,137.45,137.38,100.0]
[1720459511765,27.2759,137.44,137.38,100.0]
[1720459512093,9.3685727,137.45,137.4,100.0]
[1720459512371,9.3685727,137.45,137.38,100.0]
[1720459512372,7.2767,137.43,137.38,100.0]
[1720459512552,7.2759,137.44,137.38,100.0]
[1720459512868,7.2759,137.44,137.39,100.17]
[1720459513239,20.0,137.43,137.39,100.17]
[1720459513572,7.2777,137.41,137.36,115.8669]
[1720459513772,7.2777,137.41,137.37,30.0]
[1720459513970,20.0,137.4,137.37,100.17]
[1720459514364,5.96450047,137.46,137.39,200.0]
[1720459514682,7.2748,137.46,137.39,200.0]
[1720459514977,7.2744,137.47,137.4,7.4476]
[1720459515265,7.2744,137.47,137.42,0.17]
[1720459515266,7.2743,137.47,137.42,0.17]
[1720459515646,7.2749,137.46,137.41,100.0]
[1720459515862,7.2749,137.46,137.4,0.17]
[1720459516072,7.2754,137.45,137.4,0.17]
[1720459516471,7.275,137.46,137.4,0.17]
[1720459516851,7.2754,137.45,137.4,0.17]
[1720459517065,55.68743441,137.49,137.39,200.0]
[1720459517066,7.2761,137.44,137.39,200.0]
[1720459517574,7.2754,137.45,137.39,200.0]
[1720459517873,20.0,137.44,137.39,207.2784]
[1720459518073,37.50393441,137.49,137.43,7.2764]
[1720459518241,20.0,137.48,137.43,18.1905]
[1720459518445,20.0,137.48,137.41,222.12]
[1720459518763,7.2731,137.5,137.45,100.0]
[1720459518942,0.04325855,137.52,137.46,0.17]
[1720459519142,7.2724,137.51,137.46,0.17]
[1720459519970,7.2727,137.5,137.46,0.17]
[1720459520151,7.2727,137.5,137.45,100.0]
[1720459520343,0.04325855,137.52,137.44,16.3117]
[1720459520344,20.0,137.49,137.44,16.3117]
[1720459520546,38.22295855,137.52,137.44,16.3117]
[1720459520767,7.2738,137.48,137.44,16.3117]
[1720459521087,7.2725,137.51,137.45,100.17]
[1720459521289,20.0,137.5,137.45,100.17]
[1720459521593,20.0,137.5,137.45,125.6321]
[1720459521884,0.04325855,137.52,137.47,200.0]
[1720459522684,0.04325855,137.52,137.48,0.17]
[1720459523186,20.04325855,137.52,137.45,200.0]
[1720459523391,7.2751,137.46,137.42,6.2048]
[1720459523696,18.1823,137.5,137.43,207.2762]
[1720459523697,7.2731,137.5,137.43,207.2762]
[1720459523993,20.0,137.49,137.45,25.4631]
[1720459524281,20.0,137.49,137.44,7.2757]
[1720459524495,20.0,137.5,137.45,100.0]
[1720459524676,27.2727,137.5,137.45,100.0]
[1720459525264,20.0,137.5,137.47,100.0]
[1720459525464,20.0,137.51,137.47,100.0]
[1720459525671,20.0,137.51,137.45,100.0]
[1720459525881,0.04325855,137.52,137.45,100.0]
[1720459526193,7.2723,137.51,137.45,100.0]
[1720459526359,7.2733,137.49,137.45,100.0]
[1720459526560,7.2727,137.51,137.45,100.0]
[1720459526875,20.0,137.5,137.47,200.0]
[1720459527063,0.04325855,137.52,137.48,0.17]
[1720459527478,0.04325855,137.52,137.49,200.0]
[1720459527788,0.04325855,137.52,137.5,0.17]
[1720459527962,0.04325855,137.52,137.51,125.6225]
[1720459528297,0.04325855,137.52,137.51,247.7425]
[1720459528482,7.2673,137.61,137.55,100.0]
[1720459528661,6.1967,137.63,137.54,0.17]
[1720459528858,7.2683,137.59,137.54,0.17]
[1720459529158,21.62565828,137.63,137.55,107.2696]
[1720459529363,7.2658,137.64,137.59,0.17]
[1720459529555,29.11861636,137.66,137.56,116.1993]
[1720459529776,7.2667,137.62,137.57,0.17]
[1720459529985,18.1625,137.65,137.57,0.17]
[1720459530295,36.66892153,137.66,137.59,100.0]
[1720459530496,7.266,137.63,137.57,100.17]
[1720459530703,21.34762153,137.66,137.57,100.17]
[1720459530995,7.2686,137.58,137.54,0.17]
[1720459531162,7.2679,137.6,137.53,107.441]
[1720459531508,16.5362,137.64,137.52,16.3014]
[1720459531663,20.0,137.63,137.52,16.3014]
[1720459531858,7.2678,137.6,137.53,107.2706]
[1720459532078,7.2685,137.58,137.52,245.5228]
[1720459532304,7.2685,137.58,137.52,116.3014]
[1720459532680,7.2702,137.55,137.5,6.2291]
[1720459532999,7.2713,137.53,137.5,6.2291]
[1720459533166,7.2707,137.54,137.48,38.2514]
[1720459533368,20.0,137.53,137.49,200.0]
[1720459533593,20.0,137.53,137.48,16.3014]
[1720459533801,20.0,137.53,137.45,100.0]
[1720459533997,0.17,137.54,137.44,22.742]
[1720459534294,0.17,137.53,137.43,100.0]
[1720459534466,18.18,137.52,137.43,100.0]
[1720459534667,18.18,137.52,137.41,40.1429]
[1720459534668,7.2734,137.49,137.41,118.1929]
[1720459534892,20.0,137.48,137.43,100.0]
[1720459535101,20.17,137.51,137.43,100.0]
[1720459535394,20.17,137.51,137.43,200.0]
[1720459535598,20.0,137.51,137.45,100.0]
[1720459535780,20.0,137.53,137.45,207.2753]
[1720459535967,7.2722,137.51,137.45,200.0]
[1720459536178,34.708,137.58,137.47,200.0]
[1720459536516,34.708,137.58,137.47,100.0]
[1720459536693,34.708,137.58,137.43,100.0]
[1720459536694,52.8795,137.58,137.43,100.0]
[1720459536896,7.2751,137.46,137.43,100.0]
[1720459537098,18.1803,137.52,137.41,100.0]
[1720459537403,6.0789,137.56,137.4,22.742]
[1720459537404,18.1825,137.5,137.4,22.742]
[1720459537582,7.2754,137.45,137.4,22.742]
[1720459537784,7.2768,137.43,137.37,118.1983]
[1720459537983,7.2768,137.43,137.37,18.1983]
[1720459538395,7.2768,137.43,137.38,100.0]
[1720459538574,7.276,137.44,137.38,107.279]
[1720459538776,20.0,137.43,137.38,100.0]
[1720459539004,20.0,137.43,137.38,107.279]
[1720459539178,20.0,137.43,137.38,207.279]
[1720459539380,20.0,137.44,137.38,207.279]
[1720459540002,20.0,137.44,137.39,7.2785]
[1720459540600,20.0,137.45,137.39,7.2785]
[1720459540912,27.2754,137.45,137.39,7.2785]
[1720459541079,20.0,137.45,137.4,100.17]
[1720459541286,20.0,137.45,137.4,200.17]
[1720459541482,7.2744,137.47,137.4,229.3977]
[1720459541816,7.2744,137.47,137.42,100.0]
[1720459541988,7.2744,137.47,137.42,200.0]
[1720459541989,7.2748,137.47,137.42,200.0]
[1720459542184,7.2742,137.48,137.43,0.17]
[1720459542410,7.2743,137.47,137.43,0.17]
[1720459542601,7.2749,137.46,137.43,0.17]
[1720459542802,5.82547681,137.51,137.24,20.0]
[1720459542803,7.2772,137.42,137.37,100.0]
[1720459543513,20.0,137.45,137.39,100.0]
[1720459543722,7.2761,137.44,137.37,147.4275]
[1720459544011,20.0,137.47,137.35,6.3508]
[1720459544012,20.0,137.43,137.35,6.3508]
[1720459544316,7.2796,137.37,137.32,215.5679]
[1720459544486,0.17,137.42,137.34,100.0]
[1720459544692,38.1904,137.44,137.37,100.0]
[1720459544914,7.2773,137.42,137.37,100.0]
[1720459545214,20.0,137.41,137.37,100.0]
[1720459545593,27.277,137.42,137.38,0.17]
[1720459545896,20.0,137.42,137.38,0.17]
[1720459546108,7.2783,137.4,137.36,0.17]
[1720459546692,7.2776,137.41,137.36,0.17]
[1720459547003,0.17,137.45,137.37,100.0]
[1720459547209,20.17,137.46,137.36,0.17]
[1720459547388,7.2776,137.41,137.36,0.17]
[1720459547712,7.2765,137.43,137.38,100.0]
[1720459547915,7.276,137.44,137.38,100.0]
[1720459548214,7.276,137.44,137.39,100.0]
[1720459548432,7.275,137.46,137.41,100.0]
[1720459548711,7.2743,137.47,137.43,100.17]
[1720459548893,7.2743,137.47,137.43,0.17]
[1720459549211,7.60408161,137.53,137.45,200.0]
[1720459549426,7.2725,137.51,137.45,200.0]
[1720459549781,7.2727,137.5,137.45,200.0]
[1720459550182,7.2723,137.51,137.45,200.0]
[1720459550404,7.272,137.52,137.47,100.0]
[1720459550601,7.2722,137.51,137.47,100.0]
[1720459550893,7.2728,137.5,137.47,100.0]
[1720459551615,7.2749,137.46,137.42,115.5203]
[1720459551791,7.2756,137.45,137.4,100.0]
[1720459552111,7.2754,137.45,137.4,100.0]
[1720459552317,18.1839,137.49,137.41,100.0]
[1720459552487,7.2752,137.46,137.41,100.0]
[1720459553006,7.2744,137.47,137.41,107.2773]
[1720459553215,7.2744,137.47,137.43,100.0]
[1720459553722,7.2748,137.46,137.41,0.17]
[1720459553894,7.2744,137.47,137.42,100.0]
[1720459554417,7.2744,137.47,137.41,0.17]
[1720459554719,7.2749,137.46,137.41,0.17]
[1720459555716,24.16837828,137.49,137.39,6.6166]
[1720459556015,7.2755,137.45,137.4,100.0]
[1720459556216,7.2769,137.42,137.38,216.5767]
[1720459556531,7.2765,137.43,137.38,200.0]
[1720459556823,7.2769,137.43,137.38,100.0]
[1720459557203,7.2776,137.41,137.36,18.2002]
[1720459557820,18.1873,137.46,137.36,18.2002]
[1720459557821,7.277,137.42,137.36,18.2002]
[1720459558022,7.277,137.42,137.36,25.4803]
[1720459558519,67.23007828,137.49,137.39,100.0]
[1720459558725,20.17,137.48,137.39,100.0]
[1720459559300,7.2751,137.46,137.39,207.2781]
[1720459559499,20.17,137.48,137.39,100.0]
[1720459559500,7.276,137.44,137.39,100.0]
[1720459560213,7.2754,137.45,137.39,107.2785]
[1720459560419,20.17,137.48,137.39,100.0]
[1720459560597,0.17,137.48,137.4,18.3644]
[1720459560795,0.17,137.48,137.37,118.1978]
[1720459561112,0.17,137.45,137.35,6.3216]
[1720459561420,7.2787,137.39,137.32,107.282]
[1720459561600,7.2791,137.38,137.32,107.282]
[1720459561928,18.1955,137.4,137.32,100.0]
[1720459562098,18.1955,137.4,137.31,6.3216]
[1720459562301,20.17,137.39,137.3,241.7535]
[1720459562502,7.2792,137.38,137.32,100.0]
[1720459562731,20.0,137.39,137.3,234.4703]
[1720459562915,7.2813,137.34,137.29,7.327]
[1720459563240,0.17,137.37,137.3,100.0]
[1720459563412,7.2805,137.36,137.3,100.0]
[1720459563615,20.0,137.39,137.28,7.327]
[1720459563924,7.2838,137.3,137.25,16.2541]
[1720459564132,18.2061,137.32,137.24,6.3471]
[1720459564298,20.17,137.31,137.23,200.0]
[1720459564498,20.17,137.31,137.23,207.2869]
[1720459564499,7.2834,137.3,137.23,207.2869]
[1720459565108,7.2827,137.32,137.25,207.2859]
[1720459565321,6.2613,137.33,137.24,7.2864]
[1720459565526,20.17,137.32,137.23,100.0]
[1720459565721,7.2845,137.28,137.23,100.0]
[1720459565933,20.17,137.32,137.23,100.0]
[1720459566099,20.17,137.32,137.24,100.0]
[1720459566300,20.17,137.32,137.25,100.0]
[1720459566538,5.81542333,137.33,137.28,100.0]
[1720459566710,7.2807,137.35,137.28,225.4944]
[1720459566912,6.3464,137.38,137.28,100.0]
[1720459566913,18.1994,137.37,137.28,100.0]